Cogmind - Beta 17.1 @@@ ROGUE MODE // 2026.09.11 @ 22:33:27 Player: Caluan Result: Destroyed self with Mini Grenade Launcher Performance ------------- Evolutions (1) 500 Regions Visited (6) 1200 Robots Destroyed (65) 325 Value Destroyed (1401) 1401 Prototype IDs (2) 40 Alien Tech Used (0) 0 Bonus (0) 0 TOTAL SCORE: 3466 Bonus ------- None Cogmind --------- Core Integrity 0/400 Matter 280/300 Energy 278/280 System Corruption 2% Temperature Cool (0) Movement Treading (240) Ox1 Location -8/Mines Parts ------- > --- POWER (1) -------- Cooled Ion Engine > --- PROPULSION (3) --- Light Treads Light Treads Light Treads > --- UTILITY (3) ------ Huge Storage Unit Hacking Suite > --- WEAPON (2) ------- Light Assault Rifle Mini Grenade Launcher > --- INVENTORY (25) --- Cooled Ion Engine Cooled Ion Engine Light Treads Wheel Compact Wheel Improved Heat Sink Medium Battery (150) Large Matter Pod (150) High-capacity Matter Pod (189) Light Armor Plating Tractor Beam Improved EM Shotgun Spread Laser Light Assault Rifle Light Cannon Rocket Launcher Datajack Mining Laser Welding Torch Peak State ------------ > --- POWER ------------ Light Angular Momentum Engine > --- PROPULSION ------- Light Treads > --- UTILITY ---------- Huge Storage Unit Hacking Suite Hacking Suite > --- WEAPON ----------- Light Assault Rifle Rocket Launcher > --- INVENTORY -------- Light Ion Engine Improved Heat Sink Large Matter Pod Light Armor Plating Tractor Beam Light Assault Rifle Light Cannon Datajack Mining Laser Welding Torch [Rating: 17] Favorites ----------- Power Ion Engine Engine Ion Engine Propulsion Light Treads Treads Light Treads Leg Aluminum Leg Wheel Compact Wheel Utility Hacking Suite Storage Huge Storage Unit Processor Transport Network Coupler Hackware Hacking Suite Weapon Assault Rifle Energy Gun Improved EM Shotgun Ballistic Gun Assault Rifle Ballistic Cannon Light Cannon Launcher Rocket Launcher Special Weapon Mining Laser Special Melee Weapon Datajack Build | -11 -10 -10 -9 -9 -9 -8 ------- Run | Yrd Mat Min Mat Min Exi Min Slots Evolved 2 | . . . 2 . . . Power . | . . . . . . . Propulsion 1 | . . . 1 . . . Utility 1 | . . . 1 . . . Weapon . | . . . . . . . Parts Attached 41 | 6 9 1 24 . . 1 Power 8 | 1 2 . 5 . . . Engine 8 | 1 2 . 5 . . . Core . | . . . . . . . Reactor . | . . . . . . . Propulsion 12 | 2 1 1 8 . . . Treads 8 | 2 1 1 4 . . . Leg 1 | . . . 1 . . . Wheel 3 | . . . 3 . . . Hover . | . . . . . . . Flight . | . . . . . . . Utility 6 | 1 3 . 2 . . . Device . | . . . . . . . Storage 3 | 1 1 . 1 . . . Processor 1 | . 1 . . . . . Hackware 2 | . 1 . 1 . . . Protection . | . . . . . . . Artifact . | . . . . . . . Weapon 15 | 2 3 . 9 . . 1 Energy Gun 1 | . . . 1 . . . Energy Cannon . | . . . . . . . Ballistic Gun 8 | 2 1 . 5 . . . Ballistic Cannon 1 | . . . 1 . . . Launcher 2 | . . . 1 . . 1 Special Weapon 2 | . 1 . 1 . . . Impact Weapon . | . . . . . . . Slashing Weapon . | . . . . . . . Piercing Weapon . | . . . . . . . Special Melee Weapon 1 | . 1 . . . . . Unidentified Prototypes 2 | . . . 2 . . . Corrupted Parts 1 | . . . 1 . . . System Corruption 2 | . . . 2 . . . Parts Lost 17 | . 4 1 12 . . . Power 6 | . 2 . 4 . . . Propulsion 5 | . 1 1 3 . . . Utility 1 | . . . 1 . . . Weapon 5 | . 1 . 4 . . . Highest Loss Streak 5 | . 1 1 5 . . . To Critical Strikes . | . . . . . . . Average Backups 10 | 1 6 12 12 17 18 19 Power 1 | . . 1 1 2 2 2 Propulsion 1 | . . 1 . 3 3 3 Utility 3 | . 1 5 4 4 5 6 Weapon 3 | . 1 4 4 6 6 6 Tool/Special . | . . . . . . . Unused Backups 11 | . . . 1 . . 10 Power 3 | . . . 1 . . 2 Propulsion 1 | . . . . . . 1 Utility 6 | . . . . . . 6 Weapon 1 | . . . . . . 1 Tool/Special . | . . . . . . . Average Slot Usage (%) 84 | . 86 99 74 88 88 88 Engine 11 | . 13 14 8 11 11 11 Treads 22 | . 21 27 17 33 33 33 Storage 12 | . 14 14 11 11 11 11 Hackware 10 | . 6 14 13 11 11 11 Ballistic Gun 23 | . 27 28 17 22 22 11 Peak Build Rating 17 | 6 10 11 17 14 15 15 Average Rating 9 | 4 7 10 11 14 14 15 On Entrance 10 | . 6 10 11 14 14 15 Avg Prop Armor Cover (%) 11 | . . . 11 . . . Naked Turns . | . . . . . . . Heaviest Build 90 | 12 29 29 90 90 90 . Greatest Support 60 | 40 40 40 60 60 60 . Greatest Overweight (x) 28 | . 1 . 28 1 1 . Average Overweight (x) . | . . . 3 1 1 . Largest Inventory Capacity 25 | 8 15 15 25 25 25 25 Average Capacity 18 | 6 12 15 24 25 25 25 Most Carried 19 | 4 12 14 17 17 19 19 Average Carried 10 | 1 6 12 12 17 18 19 Final Capacity 25 | 8 15 15 25 25 25 25 Final Carried 19 | 2 12 14 17 17 19 19 Class Distribution -------------------- 58% | Mutant 36% | Scavenger-Mutant 4% | Hacker-Mutant Dominant Class ---------------- Mutant | -10/Materials Mutant | -10/Mines Scavenger-Mutant | -9/Materials Scavenger-Mutant | -9/Mines Scavenger-Mutant | -9/Exiles Scavenger-Mutant | -8/Mines Resources | -11 -10 -10 -9 -9 -9 -8 ----------- Run | Yrd Mat Min Mat Min Exi Min Matter Collected 1575 | 260 546 194 564 . 11 . Remotely . | . . . . . . . Salvage Created 2058 | . 779 203 1076 . . . Parts 144 | . 53 17 74 . . . Haulers Intercepted 5 | . 2 . 3 . . . Recyclers Shooed 3 | . . . 3 . . . Parts Field Recycled . | . . . . . . . Retrieved Matter . | . . . . . . . Parts Self-Destructed . | . . . . . . . Prevented . | . . . . . . . Parts Restored . | . . . . . . . Kills | -11 -10 -10 -9 -9 -9 -8 ------- Run | Yrd Mat Min Mat Min Exi Min Combat Hostiles Destroyed 46 | . 17 8 21 . . . Guns 40 | . 17 8 15 . . . Cannons 4 | . . . 4 . . . AOE 2 | . . . 2 . . . Classes Destroyed 10 | . 5 1 4 . . . Worker 5 | . . 1 4 . . . Hauler 5 | . 2 . 3 . . . Recycler 2 | . . . 2 . . . Mechanic 1 | . . . 1 . . . Operator 4 | . 3 . 1 . . . Watcher 2 | . 1 . 1 . . . Swarmer 17 | . 3 6 8 . . . Grunt 27 | . 14 2 11 . . . Duelist 1 | . . . 1 . . . Sentry 1 | . . . 1 . . . Best Kill Streak 7 | . 4 5 7 . . . Combat Bots Only 7 | . 3 5 7 . . . Max Kills in Single Turn 2 | . 1 2 1 . . . Gunslinging 1 | . . 1 . . . . Exploded 1 | . . . 1 . . . Melee . | . . . . . . . Uniques/NPCs Destroyed . | . . . . . . . Combat | -11 -10 -10 -9 -9 -9 -8 -------- Run | Yrd Mat Min Mat Min Exi Min Hostile Shots Fired 270 | . 84 34 149 . . 3 Missed 58 | . 15 10 32 . . 1 Hits 212 | . 69 24 117 . . 2 Melee 3 | . . . 3 . . . Projectile 209 | . 69 24 114 . . 2 Critical Strikes 1 | . . . 1 . . . Damage Taken 2351 | . 802 268 1212 . . 69 Core 605 | . 139 62 371 . . 33 Absorbed by Shields . | . . . . . . . Regen/Repaired (Parts) 350 | . 350 . . . . . Core Remaining (%) 59 | 100 . 19 . . . . Volleys Fired 211 | . 79 14 117 . . 1 Largest 2 | . 2 2 2 . . 1 Hottest 100 | . 100 40 65 . . 30 Shots Fired 375 | . 157 28 189 . . 1 Gun 345 | . 156 28 161 . . . Cannon 23 | . . . 23 . . . Launcher 4 | . . . 3 . . 1 Special 3 | . 1 . 2 . . . Kinetic 360 | . 156 28 176 . . . Thermal 3 | . 1 . 2 . . . Explosive 4 | . . . 3 . . 1 Electromagnetic 8 | . . . 8 . . . Robot Hit Streak 19 | . 18 9 19 . . 5 Robot Miss Streak 4 | . 4 4 3 . . . Penetration Max . | . . . . . . . Secondary Targets 9 | . 2 3 4 . . . Max Gunslinging Chain 1 | . 1 1 1 . . . Shots Hit Robots 245 | . 104 17 123 . . 1 Core Hits 123 | . 46 11 64 . . 2 Critical Kills . | . . . . . . . Critical Parts Destroyed . | . . . . . . . Critical Strikes 1 | . . . 1 . . . Blast 1 | . . . 1 . . . Melee Attacks 1 | . 1 . . . . . Impact . | . . . . . . . Slashing . | . . . . . . . Piercing . | . . . . . . . Sneak Attacks . | . . . . . . . Combat Hostiles . | . . . . . . . Follow-up Attacks . | . . . . . . . Damage Inflicted 3231 | . 1352 225 1531 . . 123 Guns 2537 | . 1344 214 979 . . . Cannons 212 | . . . 212 . . . Explosions 414 | . . . 291 . . 123 Melee . | . . . . . . . Ramming 68 | . 8 11 49 . . . Kinetic 2657 | . 1344 214 1099 . . . Thermal 62 | . . . 62 . . . Explosive 352 | . . . 229 . . 123 Electromagnetic 92 | . . . 92 . . . Impact . | . . . . . . . Slashing . | . . . . . . . Piercing . | . . . . . . . Highest Corruption 2 | . . . 2 2 2 2 Average Corruption 2 | . . . 2 2 2 2 Corruption Purged . | . . . . . . . Corruption Blocked . | . . . . . . . Effects 9 | . . . 3 1 5 . Message Errors 3 | . . . 1 . 2 . Matter Fused 3 | . . . 2 1 . . Heat Flow Errors 2 | . . . . . 2 . Energy Discharges 1 | . . . . . 1 . Overload Shots . | . . . . . . . Overflow Damage 15 | . . . 15 . . . Projectiles 15 | . . . 15 . . . Explosions . | . . . . . . . Melee . | . . . . . . . Knockbacks 3 | . . . 3 . . . Impact . | . . . . . . . Kinetic 3 | . . . 3 . . . Secondary . | . . . . . . . Self-Inflicted Damage 39 | . . . 6 . . 33 Shots 2 | . . . 1 . . 1 Rammed 9 | . 4 2 3 . . . Targets Rammed 10 | . 4 3 3 . . . Kicked . | . . . . . . . Crushed 1 | . . 1 . . . . Highest Temperature 205 | . 20 13 36 . 205 . Average Temperature 28 | . 4 6 11 . 100 . Received Heat Transfer 846 | . 420 102 306 . . 18 Siege Activations . | . . . . . . . Martial Activations . | . . . . . . . Shielding Activations . | . . . . . . . Robots Disrupted . | . . . . . . . Combat Hostiles . | . . . . . . . Robots Corrupted . | . . . . . . . Combat Hostiles . | . . . . . . . Parts Fried . | . . . . . . . Impact Corruptions . | . . . . . . . Robots Melted . | . . . . . . . Combat Hostiles . | . . . . . . . Parts Melted . | . . . . . . . Heat Transferred 50 | . . . 50 . . . Parts Sabotaged . | . . . . . . . Parts Stolen . | . . . . . . . Parts Stripped . | . . . . . . . Power Chain Reactions 1 | . . . 1 . . . Alert | -11 -10 -10 -9 -9 -9 -8 ------- Run | Yrd Mat Min Mat Min Exi Min Maximum Alert Level 1 | . . . 1 . . . Low Security (%) 91 | 100 100 100 73 100 . 100 Level 1 8 | . . . 26 . . . Level 2 . | . . . . . . . Level 3 . | . . . . . . . Level 4 . | . . . . . . . Level 5 . | . . . . . . . High Security . | . . . . . . . Max Security . | . . . . . . . Peak Influence 259 | . 97 140 259 65 . . Initial 65 | . . 12 24 65 . . Average 69 | . 32 56 139 41 . . Influence Increases 1435 | . 522 210 689 . . 14 Destroy 0b10 Robot/C 920 | . 340 160 420 . . . Destroy 0b10 Robot/NC 95 | . 30 5 60 . . . Destroy Leader 204 | . 96 30 78 . . . Successful Hack 31 | . 20 . 11 . . . Disable Machine 30 | . . . 30 . . . Destroy Structure 35 | . 6 . 15 . . 14 Partial Spotted 15 | . 15 . . . . . Lose Combat Pursuer 105 | . 15 15 75 . . . Influence Decreases 1421 | . 491 179 583 153 15 . Entered New Map 175 | . . 19 38 103 15 . Time Decay 1081 | . 451 150 430 50 . . Lost Part 165 | . 40 10 115 . . . Squads Dispatched 8 | . 6 . 2 . . . Investigation 3 | . 3 . . . . . Extermination . | . . . . . . . Reinforcement 5 | . 3 . 2 . . . Assault . | . . . . . . . Garrison . | . . . . . . . Intercept . | . . . . . . . Searches Triggered . | . . . . . . . Construction Impeded . | . . . . . . . Haulers Reinforced . | . . . . . . . Active Scanning Responses . | . . . . . . . Cargo Convoy Interrupts . | . . . . . . . Stealth | -11 -10 -10 -9 -9 -9 -8 --------- Run | Yrd Mat Min Mat Min Exi Min Distress Signals 4 | . . . 4 . . . Communications Jammed . | . . . . . . . Distress Signals . | . . . . . . . Times Spotted 80 | . 28 9 39 1 . 3 Peak Tracking Total 6 | . 3 6 6 1 . 3 Tactical Retreats 6 | . 1 1 4 . . . Traps | -11 -10 -10 -9 -9 -9 -8 ------- Run | Yrd Mat Min Mat Min Exi Min Traps Triggered 2 | . 2 . . . . . Indirectly . | . . . . . . . Trap Hack Attempts . | . . . . . . . Triggered . | . . . . . . . Disarmed . | . . . . . . . Reprogrammed . | . . . . . . . Reused . | . . . . . . . Traps Extracted . | . . . . . . . Installed . | . . . . . . . Triggered . | . . . . . . . Machines | -11 -10 -10 -9 -9 -9 -8 ---------- Run | Yrd Mat Min Mat Min Exi Min Machines Disabled 2 | . . . 2 . . . Max in Single Turn 1 | . . . 1 . . . Machines Repaired . | . . . . . . . Machines Dismantled . | . . . . . . . Machines Sabotaged . | . . . . . . . Overloaded Fab Kills . | . . . . . . . Hacking | -11 -10 -10 -9 -9 -9 -8 --------- Run | Yrd Mat Min Mat Min Exi Min Machines Accessed 7 | . 5 . 2 . . . Terminals 5 | . 3 . 2 . . . Fabricators . | . . . . . . . Repair Stations 1 | . 1 . . . . . Recycling Units 1 | . 1 . . . . . Scanalyzers . | . . . . . . . Garrison Access . | . . . . . . . Total Hacks 17 | . 12 . 5 . . . Successful 11 | . 9 . 2 . . . Failed 6 | . 3 . 3 . . . Catastrophic . | . . . . . . . Database Lockouts . | . . . . . . . Manual 8 | . 5 . 3 . . . Terminals 13 | . 8 . 5 . . . Fabricators . | . . . . . . . Repair Stations 2 | . 2 . . . . . Recycling Units 2 | . 2 . . . . . Scanalyzers . | . . . . . . . Garrison Access . | . . . . . . . Terminal Hacks 4 | . 3 . 1 . . . Dispatch Records 1 | . 1 . . . . . Hauler Manifests 1 | . 1 . . . . . Registered Components 2 | . 1 . 1 . . . Fabricator Hacks . | . . . . . . . Repair Station Hacks 2 | . 2 . . . . . Scan Component 1 | . 1 . . . . . Repair 1 | . 1 . . . . . Recycling Unit Hacks 2 | . 2 . . . . . Report Inventory 1 | . 1 . . . . . Retrieve Components 1 | . 1 . . . . . Scanalyzer . | . . . . . . . Garrison Access Hacks . | . . . . . . . Unauthorized Hacks 3 | . 2 . 1 . . . Terminals 3 | . 2 . 1 . . . Botnet 3 | . 2 . 1 . . . Fabricators . | . . . . . . . Repair Stations . | . . . . . . . Recycling Units . | . . . . . . . Scanalyzers . | . . . . . . . Garrison Access . | . . . . . . . Data Cores Recovered . | . . . . . . . Used . | . . . . . . . Hacking Detections 4 | . 3 . 1 . . . Full Trace Events 1 | . 1 . . . . . Feedback Events . | . . . . . . . Feedback Blocked . | . . . . . . . Robot Schematics Acquired . | . . . . . . . Robots Built . | . . . . . . . Authchips . | . . . . . . . Time . | . . . . . . . Total Robot Build Rating . | . . . . . . . Part Schematics Acquired . | . . . . . . . Parts Built . | . . . . . . . Authchips . | . . . . . . . Time . | . . . . . . . Total Part Build Rating . | . . . . . . . Part Studies Acquired . | . . . . . . . Parts Repaired 1 | . 1 . . . . . Time 26 | . 26 . . . . . Parts Recycled . | . . . . . . . Recycled Matter . | . . . . . . . Retrieved Matter . | . . . . . . . Retrieved Components 7 | . 7 . . . . . Parts Scanalyzed . | . . . . . . . Part Schematics Acquired . | . . . . . . . Parts Damaged . | . . . . . . . Bothacking | -11 -10 -10 -9 -9 -9 -8 ------------ Run | Yrd Mat Min Mat Min Exi Min Used RIF Installer . | . . . . . . . Robots Hacked . | . . . . . . . Non-combat . | . . . . . . . Combat . | . . . . . . . Robot Hacks Applied . | . . . . . . . Relay Couplers Released . | . . . . . . . Fabnet Peak Effective % . | . . . . . . . Robots Rewired . | . . . . . . . Allies Hacked . | . . . . . . . Hacks Repelled . | . . . . . . . Allies | -11 -10 -10 -9 -9 -9 -8 -------- Run | Yrd Mat Min Mat Min Exi Min Total Allies . | . . . . . . . Largest Group . | . . . . . . . Highest-Rated Group . | . . . . . . . Highest-Rated Ally . | . . . . . . . Total Orders . | . . . . . . . Ally Attacks . | . . . . . . . Total Damage . | . . . . . . . Kills . | . . . . . . . Allies Corrupted . | . . . . . . . Allies Melted . | . . . . . . . Intel | -11 -10 -10 -9 -9 -9 -8 ------- Run | Yrd Mat Min Mat Min Exi Min Active Infowar (turns) 154 | . 154 . . . . . T.N.C. 154 | . 154 . . . . . Robot Analysis Total . | . . . . . . . Derelict Logs Recovered 1 | . . 1 . . . . Drone Launches . | . . . . . . . Drone Recoveries . | . . . . . . . Exploration | -11 -10 -10 -9 -9 -9 -8 ------------- Run | Yrd Mat Min Mat Min Exi Min Turns Passed 4272 | 87 1893 406 1204 111 569 2 Spaces Moved 1639 | 53 786 222 294 47 237 . Core 16 | 9 . . 7 . . . Treads 1530 | 44 786 222 194 47 237 . Legs 15 | . . . 15 . . . Wheels 78 | . . . 78 . . . Hover . | . . . . . . . Flight . | . . . . . . . Fastest Speed 50 | 50 160 160 135 240 240 . Average Speed 208 | 141 189 160 276 240 240 . Slowest Speed 1450 | 160 240 160 1450 240 240 . Overloaded Moves . | . . . . . . . Propulsion Burnouts . | . . . . . . . Robots Hopped . | . . . . . . . Potential Cave-ins . | . . . . . . . Cave-ins Triggered . | . . . . . . . Exploration Rate (%) 33 | 4 90 55 24 12 45 4 Regions Visited 6 Branch Regions 4 Pre-discovered Areas . | . . . . . . . Known Exits Taken . | . . . . . . . Unknown Exits Taken 6 | 1 1 1 1 1 1 . Scrap Searched 2 | . . 2 . . . . Spaces Dug 1 | . 1 . . . . . Terrain Destroyed 29 | . 1 . 14 . . 14 Melee . | . . . . . . . Projectile 1 | . 1 . . . . . AOE 28 | . . . 14 . . 14 Terrain Rammed . | . . . . . . . Walls Destroyed . | . . . . . . . Machines Disabled . | . . . . . . . Actions | -11 -10 -10 -9 -9 -9 -8 --------- Run | Yrd Mat Min Mat Min Exi Min Total 2141 | 65 1028 243 519 46 238 2 Wait 184 | . 131 1 52 . . . Move 1633 | 52 785 221 293 46 236 . Hop . | . . . . . . . Pick Up 48 | 7 16 3 20 . 2 . Fast Attach 5 | 1 2 . 2 . . . Attach 28 | 5 5 1 17 . . . Detach 2 | . . . 2 . . . Swap 12 | . 3 . 8 . . 1 Drop 7 | . 2 . 5 . . . Fire 211 | . 79 14 117 . . 1 Melee 1 | . 1 . . . . . Ram . | . . . . . . . Kick . | . . . . . . . Crush 10 | . 4 3 3 . . . Escape Stasis . | . . . . . . . Rewire . | . . . . . . . Trap . | . . . . . . . Miscellaneous . | . . . . . . . Route ------- -11/Scrapyard -10/Materials (discovered 6 exits: *Mat x3 / [*Min x2] / [*Sub]) -10/Mines -9/Materials -9/Mines -9/Exiles -8/Mines History --------- Turn | Location | Event 4 | -11/Scrapyard | Discovered new exit (range 16) 88 | -11/Scrapyard | Entered Materials 314 | -10/Materials | Discovered new exit (range 16) 317 | -10/Materials | Build established: Mutant 1188 | -10/Materials | Repaired Huge Storage Unit 1362 | -10/Materials | Discovered new exit (range 15) 1521 | -10/Materials | Core integrity fell below 50% 1738 | -10/Materials | Discovered new exit (range 16) 1793 | -10/Materials | Discovered new exit (range 14) 1851 | -10/Materials | Discovered new exit (range 8) 1855 | -10/Materials | Discovered new exit (range 7) 1981 | -10/Materials | Entered Mines 1988 | -10/Mines | Met a Derelict bent on vengeance 2224 | -10/Mines | Core integrity fell below 20% 2353 | -10/Mines | Learned 2 Materials zone layouts 2371 | -10/Mines | Discovered new exit (range 13) 2387 | -10/Mines | Entered Materials 2387 | -9/Materials | Evolved 2 slots: Propulsion x1, Utility x1 2740 | -9/Materials | Destroyed 7 combat bots 2745 | -9/Materials | Lost 5 parts (2p1n2w) 2840 | -9/Materials | Lost 3 parts (1p1n1w) 2878 | -9/Materials | Core integrity fell below 50% 2901 | -9/Materials | Lost 3 parts (1n1u1w) 3078 | -9/Materials | Core integrity fell below 20% 3276 | -9/Materials | Build established: Scavenger-Mutant 3546 | -9/Materials | Discovered new exit (range 8) 3591 | -9/Materials | Entered Mines 3592 | -9/Mines | Assembled infested the area 3668 | -9/Mines | Met 8R-AWN 3692 | -9/Mines | Discovered new exit (range 5) 3702 | -9/Mines | Entered Exiles 3741 | -9/Exiles | Discovered new exit (range 15) 3767 | -9/Exiles | Welcomed by 8R-AWN 3801 | -9/Exiles | Met EX-HEX 3890 | -9/Exiles | Met EX-DEC 4020 | -9/Exiles | Visited The Gauntlet 4271 | -9/Exiles | Entered Mines 4273 | -8/Mines | Destroyed self with Mini Grenade Launcher Last Messages --------------- keep us out! Anyway, I've got to get back to poking and prodding these nasty little guys. Go see BIN. I can't imagine you'll want to stay in our boring little cave for long, and we could use some help with the project in the back. EX-DEC: Ah I see we have a visitor. One wrong move in here and I'll invert your atomic chain! System corrupted: Heat flow error (+230). Extracted 11 matter. Acquired Hcp. Matter Pod. Extracted 6 energy. Acquired Med. Battery. E PUZAJCB8ZE5PR0UY13>|08IN3DV ZK#WUXE System corrupted: Energy discharge (-72). System corrupted: Heat flow error (+196). M%LO56MDENIKDHTC NVXIF&71 LOCATION=UNKNOWN GOAL=ESCAPE Map ----- +----------------------------------------------------+ | ???????????????????????????????????????????????? | | ???????????????????????????????????????????????? | | ???????????????????????????????????????????????? | | ???????????????????????????????????????????????? | | ???????????????????????????????????????????????? | | ???????????????????????????????????????????????? | | ???????????????????????????????????????????????? | | ???????????????????????????????????????????????? | | ???????????????????????????????????????????????? | | ???????????????????????????????????????????????? | | ???????????????????????????????????????????????? | | ???????????????????????????????????????????????? | | ???????????????????????????????????????????????? | | ???????????????????????????????????????????????? | | ???????????????????????????????????????????????? | | ???????????????????????????????????????????????? | | ???????????????????????????????????????????????? | | ???????????????????????????????????????????????? | | ???????????????????????????????????????????????? | | ???????????????????????????????????????????????? | | ??????????????????????####?????????????????????? | | ?????????????????????## ##????????????????????? | | ??????????????????#### #????????????????????? | | ?????????????????## #????????????????????? | | ???????????????### ###??????????????????? | | ????????????# @ #??????????????????? | | ?????????#* #?????????????????? | | ????????# ######### gg #?????????????????? | | ??????????????????????# g #?????????????????? | | ??????????????????????# #?????????????????? | | ???????????????????????? #?????????????????? | | ????????????????????????# ###??????????????????? | | ?????????????????????????##????????????????????? | | ???????????????????????????????????????????????? | | ???????????????????????????????????????????????? | | ???????????????????????????????????????????????? | | ???????????????????????????????????????????????? | | ???????????????????????????????????????????????? | | ???????????????????????????????????????????????? | | ???????????????????????????????????????????????? | | ???????????????????????????????????????????????? | | ???????????????????????????????????????????????? | | ???????????????????????????????????????????????? | | ???????????????????????????????????????????????? | | ???????????????????????????????????????????????? | | ???????????????????????????????????????????????? | | ???????????????????????????????????????????????? | | ???????????????????????????????????????????????? | | ???????????????????????????????????????????????? | | ???????????????????????????????????????????????? | +----------------------------------------------------+ Best States ------------- Heat Dissipation 28 Energy Generation 18 Energy Capacity 280 Matter Stores 300 Matter Capacity 300 Sight Range 16 Terrain Scan Density 10 Evasion (%) 50 Recoil Reduction 3 Offensive Hacking 20 Item Schematics ----------------- None Robot Schematics ------------------ None Fabricated ------------ Nothing Repaired ---------- Huge Storage Unit | 41% | -10/Materials Studied --------- None Alien Tech Used ----------------- None Achievements -------------- None Challenges ------------ None Game ------ Seed TripodCompanionShooter Manual? 0 Play Time 00:21:54 Cumulative 241.6 hours Start 2026.09.11 @ 22:10:51 End 2026.09.11 @ 22:33:27 Sessions 1 Manual Loads 0 Difficulty Rogue Special Mode None Game No. 276 Rogue 276 Adventurer 0 Explorer 0 Win Type - Total 2 Types 2/0/0/0/0/0/0/0/0/0 Lore% 30 Gallery% 55 Achievement% 36 Wizard Run 0 Options --------- Layout 1 ASCII 0 Keyboard 0 Movement Numpad Keybinds 0 Fullscreen 2 Font 24/Smallcaps Map View 50x35 Zoom Use 0% Tactical HUD 0 Map Filters NONE Filters NONE Steam 1 RUN: e0b01761-f69a-40a8-98cb-1913b2a2ed54